Cogmind - Beta 14 @@@ ROGUE MODE // 2025.01.18 @ 13:39:50 Player: SuperSwiss Result: Self-destructed Performance ------------- Evolutions (2) 1000 Regions Visited (5) 1000 Robots Destroyed (20) 100 Value Destroyed (496) 496 Prototype IDs (26) 520 Alien Tech Used (0) 0 Bonus (300) 300 TOTAL SCORE: 3416 Bonus ------- Aligned with FarCom 300 Cogmind --------- Core Integrity 534/550 Matter 207/300 Energy 265/265 System Corruption 2% Temperature Cool (0) Movement Treading (160) Location -8/Materials Parts ------- > --- POWER (1) -------- Improved Ion Engine > --- PROPULSION (4) --- Light Treads Light Treads Light Treads > --- UTILITY (4) ------ Large Storage Unit Structural Scanner Transport Network Coupler Hacking Suite > --- WEAPON (2) ------- Autogun Enhanced Autogun > --- INVENTORY (15) --- Light Ion Engine VTOL Module VTOL Module VTOL Module Advanced Weight Redist. System Hardened Light Armor Plating Hardened Light Armor Plating Authchip [Propulsion] Authchip [Propulsion] XL Autogun Array Mining Laser Peak State ------------ > --- POWER ------------ Improved Ion Engine > --- PROPULSION ------- Light Treads Light Treads Light Treads > --- UTILITY ---------- Large Storage Unit Structural Scanner Transport Network Coupler Hardened Light Armor Plating > --- WEAPON ----------- High-powered Shotgun Enhanced Autogun > --- INVENTORY -------- Light Ion Engine VTOL Module VTOL Module VTOL Module Hardened Light Armor Plating Authchip [Propulsion] Authchip [Propulsion] Autogun XL Autogun Array Mining Laser [Rating: 22] Favorites ----------- Power Improved Ion Engine Engine Improved Ion Engine Power Core Light Nuclear Core Propulsion Light Treads Treads Light Treads Utility Transport Network Coupler Device Structural Scanner Storage Large Storage Unit Processor Transport Network Coupler Hackware Hacking Suite Protection Hardened Light Armor Plating Weapon Assault Rifle Ballistic Gun Assault Rifle Ballistic Cannon Slug Cannon Special Weapon Welding Torch Build | -11 -10 -10 -10 -9 -8 ------- Run | Yrd Mat Min Exi Min Mat Slots Evolved 4 | . . . . . 4 Power . | . . . . . . Propulsion 2 | . . . . . 2 Utility 2 | . . . . . 2 Weapon . | . . . . . . Parts Attached 33 | 6 12 5 1 2 7 Power 5 | 1 3 1 . . . Engine 3 | 1 1 1 . . . Core 2 | . 2 . . . . Reactor . | . . . . . . Propulsion 8 | 2 3 1 . . 2 Treads 8 | 2 3 1 . . 2 Leg . | . . . . . . Wheel . | . . . . . . Hover . | . . . . . . Flight . | . . . . . . Utility 6 | 1 2 . . . 3 Device 1 | . . . . . 1 Storage 2 | 1 1 . . . . Processor 1 | . 1 . . . . Hackware 1 | . . . . . 1 Protection 1 | . . . . . 1 Artifact . | . . . . . . Weapon 14 | 2 4 3 1 2 2 Energy Gun . | . . . . . . Energy Cannon . | . . . . . . Ballistic Gun 12 | 2 4 2 1 1 2 Ballistic Cannon 1 | . . . . 1 . Launcher . | . . . . . . Special Weapon 1 | . . 1 . . . Impact Weapon . | . . . . . . Slashing Weapon . | . . . . . . Piercing Weapon . | . . . . . . Special Melee Weapon . | . . . . . . Unidentified Prototypes 1 | . . . . . 1 Parts Lost 4 | . . 3 . . 1 Power 1 | . . 1 . . . Propulsion 2 | . . 1 . . 1 Utility . | . . . . . . Weapon 1 | . . 1 . . . Highest Loss Streak 2 | . . 2 . . 1 To Critical Strikes . | . . . . . . Average Slot Usage (%) 97 | . 98 98 100 100 89 Engine 9 | . 5 11 14 14 9 Core 3 | . 8 2 . . . Treads 27 | . 28 27 28 28 26 Storage 13 | . 14 14 14 14 9 Processor 13 | . 12 14 14 14 9 Ballistic Gun 26 | . 27 26 28 26 18 Peak Build Rating 22 | 6 12 12 15 18 22 Average Rating 12 | 3 9 10 12 15 21 On Entrance 10 | . 6 12 11 15 16 Naked Turns . | . . . . . . Heaviest Build 39 | 13 29 30 32 37 39 Greatest Support 60 | 40 40 40 40 40 60 Greatest Overweight (x) . | . . . . . . Average Overweight (x) . | . . . . . . Largest Inventory Capacity 15 | 8 15 15 15 15 15 Average Capacity 13 | 7 10 15 15 15 15 Most Carried 15 | 5 15 15 15 15 15 Average Carried 12 | 1 8 14 14 15 12 Final Capacity 15 | 8 15 15 15 15 15 Final Carried 15 | . 15 15 15 15 14 Class Distribution -------------------- 90% | Mutant 9% | Skirmisher Dominant Class ---------------- Mutant | -10/Materials Mutant | -10/Mines Mutant | -10/Exiles Mutant | -9/Mines Skirmisher | -8/Materials Resources | -11 -10 -10 -10 -9 -8 ----------- Run | Yrd Mat Min Exi Min Mat Matter Collected 766 | 197 354 181 . 20 14 Remotely . | . . . . . . Salvage Created 656 | . 421 178 . . 57 Parts 45 | . 28 14 . . 3 Haulers Intercepted 1 | . 1 . . . . Recyclers Shooed 1 | . 1 . . . . Parts Field Recycled . | . . . . . . Retrieved Matter . | . . . . . . Parts Self-Destructed . | . . . . . . Prevented . | . . . . . . Kills | -11 -10 -10 -10 -9 -8 ------- Run | Yrd Mat Min Exi Min Mat Combat Hostiles Destroyed 17 | . 9 7 . . 1 Guns 17 | . 9 7 . . 1 Classes Destroyed 6 | . 5 . . . 1 Builder 1 | . 1 . . . . Hauler 1 | . 1 . . . . Operator 1 | . 1 . . . . Swarmer 7 | . 2 5 . . . Grunt 9 | . 7 2 . . . Sentry 1 | . . . . . 1 Best Kill Streak 3 | . 2 3 . . 1 Combat Bots Only 3 | . 2 3 . . 1 Max Kills in Single Turn 1 | . 1 1 . . 1 Gunslinging . | . . . . . . Exploded . | . . . . . . Melee . | . . . . . . Uniques/NPCs Destroyed . | . . . . . . Combat | -11 -10 -10 -10 -9 -8 -------- Run | Yrd Mat Min Exi Min Mat Hostile Shots Fired 131 | . 46 71 . . 14 Missed 42 | . 12 24 . . 6 Damage Taken 990 | . 424 444 . . 122 Core 146 | . 57 73 . . 16 Absorbed by Shields . | . . . . . . Core Remaining (%) 74 | 100 . . . 48 . Volleys Fired 70 | . 37 29 . . 4 Largest 2 | . 2 2 . . 2 Hottest 48 | . 40 40 . . 48 Shots Fired 140 | . 74 58 . . 8 Gun 140 | . 74 58 . . 8 Cannon . | . . . . . . Launcher . | . . . . . . Special . | . . . . . . Kinetic 140 | . 74 58 . . 8 Thermal . | . . . . . . Explosive . | . . . . . . Electromagnetic . | . . . . . . Robot Hit Streak 11 | . 11 9 . . 10 Robot Miss Streak 7 | . 4 7 . . . Penetration Max . | . . . . . . Secondary Targets 3 | . . 3 . . . Max Gunslinging Chain 1 | . . 1 . . . Shots Hit Robots 92 | . 49 35 . . 8 Core Hits 37 | . 24 11 . . 2 Critical Kills . | . . . . . . Critical Parts Destroyed 1 | . 1 . . . . Critical Strikes 1 | . 1 . . . . Destroy 1 | . 1 . . . . Melee Attacks . | . . . . . . Impact . | . . . . . . Slashing . | . . . . . . Piercing . | . . . . . . Sneak Attacks . | . . . . . . Combat Hostiles . | . . . . . . Follow-up Attacks . | . . . . . . Damage Inflicted 1107 | . 601 368 . . 138 Guns 1107 | . 601 368 . . 138 Cannons . | . . . . . . Explosions . | . . . . . . Melee . | . . . . . . Ramming . | . . . . . . Kinetic 1107 | . 601 368 . . 138 Thermal . | . . . . . . Explosive . | . . . . . . Electromagnetic . | . . . . . . Impact . | . . . . . . Slashing . | . . . . . . Piercing . | . . . . . . Highest Corruption 2 | . . . . . 2 Average Corruption 2 | . . . . . 2 Corruption Purged . | . . . . . . Corruption Blocked . | . . . . . . Effects 1 | . . . . . 1 Energy Discharges 1 | . . . . . 1 Overload Shots . | . . . . . . Overflow Damage . | . . . . . . Projectiles . | . . . . . . Explosions . | . . . . . . Melee . | . . . . . . Knockbacks . | . . . . . . Impact . | . . . . . . Kinetic . | . . . . . . Secondary . | . . . . . . Self-Inflicted Damage . | . . . . . . Shots . | . . . . . . Rammed 1 | 1 . . . . . Targets Rammed 1 | 1 . . . . . Kicked . | . . . . . . Crushed . | . . . . . . Highest Temperature 23 | . 23 13 . . 8 Average Temperature 5 | . 6 3 . . 7 Received Heat Transfer 270 | . 192 51 . . 27 Siege Activations . | . . . . . . Robots Corrupted . | . . . . . . Combat Hostiles . | . . . . . . Parts Fried . | . . . . . . Impact Corruptions . | . . . . . . Robots Melted . | . . . . . . Combat Hostiles . | . . . . . . Parts Melted . | . . . . . . Heat Transferred . | . . . . . . Parts Sabotaged . | . . . . . . Parts Stolen . | . . . . . . Parts Stripped . | . . . . . . Power Chain Reactions . | . . . . . . Alert | -11 -10 -10 -10 -9 -8 ------- Run | Yrd Mat Min Exi Min Mat Peak Influence 214 | . 203 214 . . 78 Initial 29 | . . 29 . . . Average 49 | . 78 62 . . 12 Maximum Alert Level 1 | . 1 1 . . . Low Security (%) 92 | 100 93 84 . 100 100 Level 1 7 | . 6 15 . . . Level 2 . | . . . . . . Level 3 . | . . . . . . Level 4 . | . . . . . . Level 5 . | . . . . . . High Security . | . . . . . . Max Security . | . . . . . . Squads Dispatched 5 | . 2 . . . 3 Investigation 3 | . 1 . . . 2 Extermination . | . . . . . . Reinforcement 2 | . 1 . . . 1 Assault . | . . . . . . Garrison . | . . . . . . Intercept . | . . . . . . Searches Triggered . | . . . . . . Construction Impeded . | . . . . . . Haulers Reinforced . | . . . . . . Active Scanning Responses . | . . . . . . Cargo Convoy Interrupts . | . . . . . . Stealth | -11 -10 -10 -10 -9 -8 --------- Run | Yrd Mat Min Exi Min Mat Distress Signals 2 | . . . . . 2 Communications Jammed . | . . . . . . Distress Signals . | . . . . . . Times Spotted 32 | . 20 8 . . 4 Peak Tracking Total 4 | . 4 3 . . 4 Tactical Retreats 3 | . 1 1 . . 1 Traps | -11 -10 -10 -10 -9 -8 ------- Run | Yrd Mat Min Exi Min Mat Traps Triggered 8 | . 4 1 . . 3 Indirectly . | . . . . . . Trap Hack Attempts . | . . . . . . Triggered . | . . . . . . Disarmed . | . . . . . . Reprogrammed . | . . . . . . Reused . | . . . . . . Traps Extracted . | . . . . . . Installed . | . . . . . . Triggered . | . . . . . . Machines | -11 -10 -10 -10 -9 -8 ---------- Run | Yrd Mat Min Exi Min Mat Machines Disabled . | . . . . . . Max in Single Turn . | . . . . . . Machines Repaired . | . . . . . . Machines Dismantled . | . . . . . . Machines Sabotaged . | . . . . . . Overloaded Fab Kills . | . . . . . . Hacking | -11 -10 -10 -10 -9 -8 --------- Run | Yrd Mat Min Exi Min Mat Machines Accessed 14 | . 7 1 1 . 5 Terminals 12 | . 7 . . . 5 Fabricators . | . . . . . . Repair Stations . | . . . . . . Recycling Units . | . . . . . . Scanalyzers . | . . . . . . Garrison Access . | . . . . . . Total Hacks 35 | . 20 1 1 . 13 Successful 17 | . 11 1 1 . 4 Failed 18 | . 9 . . . 9 Catastrophic . | . . . . . . Database Lockouts . | . . . . . . Manual 27 | . 11 . 1 . 15 Terminals 33 | . 20 . . . 13 Fabricators . | . . . . . . Repair Stations . | . . . . . . Recycling Units . | . . . . . . Scanalyzers . | . . . . . . Garrison Access . | . . . . . . Terminal Hacks 7 | . 4 1 1 . 1 Prototype ID Bank 1 | . 1 . . . . Open Door 1 | . . 1 . . . Unreport Threat 1 | . 1 . . . . Hauler Manifests 2 | . 1 . . . 1 Zone Layout 1 | . 1 . . . . Derelict Proto ID Bank 1 | . . . 1 . . Fabricator Hacks . | . . . . . . Repair Station Hacks . | . . . . . . Recycling Unit Hacks . | . . . . . . Scanalyzer . | . . . . . . Garrison Access Hacks . | . . . . . . Unauthorized Hacks 10 | . 7 . . . 3 Terminals 10 | . 7 . . . 3 Botnet 10 | . 7 . . . 3 Fabricators . | . . . . . . Repair Stations . | . . . . . . Recycling Units . | . . . . . . Scanalyzers . | . . . . . . Garrison Access . | . . . . . . Data Cores Recovered . | . . . . . . Used . | . . . . . . Hacking Detections 10 | . 6 . . . 4 Full Trace Events . | . . . . . . Feedback Events . | . . . . . . Feedback Blocked . | . . . . . . Robot Schematics Acquired . | . . . . . . Robots Built . | . . . . . . Authchips . | . . . . . . Time . | . . . . . . Total Robot Build Rating . | . . . . . . Part Schematics Acquired . | . . . . . . Parts Built . | . . . . . . Authchips . | . . . . . . Time . | . . . . . . Total Part Build Rating . | . . . . . . Parts Repaired . | . . . . . . Time . | . . . . . . Parts Recycled . | . . . . . . Recycled Matter . | . . . . . . Retrieved Matter . | . . . . . . Retrieved Components . | . . . . . . Parts Scanalyzed . | . . . . . . Part Schematics Acquired . | . . . . . . Parts Damaged . | . . . . . . Bothacking | -11 -10 -10 -10 -9 -8 ------------ Run | Yrd Mat Min Exi Min Mat Used RIF Installer . | . . . . . . Robots Hacked . | . . . . . . Non-combat . | . . . . . . Combat . | . . . . . . Robot Hacks Applied . | . . . . . . Relay Couplers Released . | . . . . . . Fabnet Peak Effective % . | . . . . . . Robots Rewired . | . . . . . . Allies Hacked . | . . . . . . Hacks Repelled . | . . . . . . Allies | -11 -10 -10 -10 -9 -8 -------- Run | Yrd Mat Min Exi Min Mat Total Allies 1 | . . 1 . . . Largest Group 1 | . . 1 1 . . Highest-Rated Group 31 | . . 31 31 . . Highest-Rated Ally 31 | . . 31 31 . . Total Orders . | . . . . . . Ally Attacks . | . . . . . . Total Damage . | . . . . . . Kills . | . . . . . . Allies Corrupted . | . . . . . . Allies Melted . | . . . . . . Intel | -11 -10 -10 -10 -9 -8 ------- Run | Yrd Mat Min Exi Min Mat Robot Analysis Total . | . . . . . . Derelict Logs Recovered 2 | . . 1 . 1 . Drone Launches . | . . . . . . Drone Recoveries . | . . . . . . Exploration | -11 -10 -10 -10 -9 -8 ------------- Run | Yrd Mat Min Exi Min Mat Turns Passed 3584 | 52 1201 1002 341 616 372 Spaces Moved 2013 | 38 642 568 211 383 171 Core 19 | 19 . . . . . Treads 1994 | 19 642 568 211 383 171 Legs . | . . . . . . Wheels . | . . . . . . Hover . | . . . . . . Flight . | . . . . . . Fastest Speed 50 | 50 160 160 160 160 160 Average Speed 158 | 105 160 160 160 160 160 Slowest Speed 160 | 160 160 160 160 160 160 Overloaded Moves . | . . . . . . Propulsion Burnouts . | . . . . . . Robots Hopped . | . . . . . . Cave-ins Triggered . | . . . . . . Exploration Rate (%) 62 | 3 93 98 62 91 27 Regions Visited 5 Branch Regions 3 Pre-discovered Areas 1 | . . 1 . . . Known Exits Taken . | . . . . . . Unknown Exits Taken 5 | 1 1 1 1 1 . Scrap Searched 2 | . . 1 . 1 . Spaces Dug . | . . . . . . Terrain Destroyed . | . . . . . . Melee . | . . . . . . Projectile . | . . . . . . AOE . | . . . . . . Terrain Rammed . | . . . . . . Walls Destroyed . | . . . . . . Machines Disabled . | . . . . . . Actions | -11 -10 -10 -10 -9 -8 --------- Run | Yrd Mat Min Exi Min Mat Total 2264 | 49 743 608 216 386 262 Wait 105 | . 30 . . . 75 Move 2008 | 37 641 567 210 382 171 Hop . | . . . . . . Pick Up 34 | 5 19 5 1 . 4 Fast Attach 8 | 1 5 . . 2 . Attach 16 | 5 3 4 . . 4 Detach 1 | . 1 . . . . Swap 9 | . 4 1 1 . 3 Drop 12 | . 3 2 4 2 1 Fire 70 | . 37 29 . . 4 Melee . | . . . . . . Ram . | . . . . . . Kick . | . . . . . . Crush 1 | 1 . . . . . Escape Stasis . | . . . . . . Rewire . | . . . . . . Trap . | . . . . . . Miscellaneous . | . . . . . . Route ------- -11/Scrapyard -10/Materials (discovered 4 exits: [*Mat x3] / *Min) -10/Mines (discovered 3 exits: [*Mat x2] / *Exi) -10/Exiles (discovered 2 exits: [*Min x2]) -9/Mines (discovered 2 exits: *Mat x2) -8/Materials (discovered 1 exit: Fac) History --------- Turn | Location | Event 2 | -11/Scrapyard | Met Revision 17 10 | -11/Scrapyard | Discovered new exit (range 16) 53 | -11/Scrapyard | Entered Materials 313 | -10/Materials | Build established: Mutant 516 | -10/Materials | Discovered new exit (range 10) 677 | -10/Materials | Discovered new exit (range 9) 875 | -10/Materials | Discovered new exit (range 6) 1162 | -10/Materials | Discovered new exit (range 8) 1254 | -10/Materials | Entered Mines 1491 | -10/Mines | Core integrity fell below 50% 1680 | -10/Mines | Discovered new exit (range 8) 1868 | -10/Mines | Discovered new exit (range 7) 1881 | -10/Mines | Met a Derelict who couldn't figure out how to use a Trap Extractor 2020 | -10/Mines | Received a Mining Laser from a helpful Derelict 2168 | -10/Mines | Learned location of Zion (-6) 2250 | -10/Mines | Deemed a non-threat by the Exiles lab entrance 2250 | -10/Mines | Discovered new exit (range 5) 2256 | -10/Mines | Entered Exiles 2256 | -10/Exiles | Accompanied by 1 ally 2280 | -10/Exiles | Discovered new exit (range 15) 2300 | -10/Exiles | Met 8R-AWN 2320 | -10/Exiles | Met EX-HEX 2370 | -10/Exiles | Met EX-BIN 2389 | -10/Exiles | Aligned with FarCom system 2391 | -10/Exiles | Given EX-Vault access code 2428 | -10/Exiles | Opened EX-Vault 2442 | -10/Exiles | Found XL Autogun Array 2479 | -10/Exiles | Warned to stay clear of 0b10 Research branches 2527 | -10/Exiles | Met EX-DEC 2584 | -10/Exiles | Discovered new exit (range 10) 2597 | -10/Exiles | Left Exiles lab with XL Autogun Array 2597 | -10/Exiles | Entered Mines 2813 | -9/Mines | A weapon hastily lodged in a ceiling crevice suddenly fell to the ground 2997 | -9/Mines | Learned 4 Materials zone layouts 3171 | -9/Mines | Discovered new exit (range 5) 3201 | -9/Mines | Discovered new exit (range 8) 3213 | -9/Mines | Entered Materials 3213 | -8/Materials | Evolved 4 slots: Propulsion x2, Utility x2 3214 | -8/Materials | Identified exit to Factory 3533 | -8/Materials | Build established: Skirmisher 3585 | -8/Materials | Self-destructed Last Messages --------------- 1x Imp. Medium Laser 03488_ K-01 Serf collects debris. 03500_ Triggered Shock Trap. 03500_ The floor emits a surge of raw power. 03500_ System corrupted (+2). 03502_ U-05 Engineer lays Concrete. 03505_ Acquired data core, dynamic key expired. 03508_ Triggered Alarm Trap. 03508_ An alarm sounds. 03508_ ALERT: Alarm triggered, dispatching investigation squad. 03512_ Connecting with Terminal... 03513_ U-05 Engineer lays Concrete. 03521_ Acquired Adv. Weight Redist. System. 03524_ U-05 Engineer lays Concrete. 03553_ System corrupted: Energy discharge (-92). 03560_ Lgt. Treads destroyed. 03563_ Y-45 Defender destroyed. 03569_ Acquired Lgt. Treads. 03583_ ALERT: Suspicious intruders detected, dispatching Specialist reinforcements to area. Map ----- +----------------------------------------------------+ | ????????????????##???????####### """ #????????? | | ???????????????? #???????# # #????????? | | ???????????????? #???????#""" # #????????? | | ???????????????? #???????#""" # #????????? | | ???????????????? #########""" # #????????? | | ???????????????? ## ###""" # "T" #????????? | | ???????????????? # ## ##########????????? | | ????????????????## ## #???????#T????????? | | ???????????????? # #####+########## ????????? | | ???????????????? ????????? | | ???????????????? #######+#########+######????????? | | ???????????????? #???# #??# #?#????????? | | ???????????????? #???# #??# #?#????????? | | ???????????????? #???# #??# #?#????????? | | ???????????????? #???# """ #?## ###????????? | | ???????????????? #???# """ #?# ## ????????? | | ???????????????? ##### """ #?## / ????????? | | ???????????????? ############??######### ????????? | | ?????????a?????? # ##????????????##????????? | | ???????????????? # ##?????????????#????????? | | ????????????## ? # ##?????????????# ##?????? | | ????????????## ?a# ##?????????????# ##?????? | | ????????????## # ##??############ ##?????? | | ????????????## u ################ ## | | ????????H???## ? #w ######"""T"""### ######+# | | ????????????????## [@% Y ^ | | ????????????????## #! | | ????????????????## # | | ????????????????## ## ## % | | ????????????????###########+## h a | | ????????????????## # """ """ """ """ | | ??????????????????????? # """ """ ^""" """ | | ????????????????????? ! # """ """ """ """ | | ????????????????##"" + | | ????????????????## """"" # = ! ! | | ???????????????### """"" # | | ???????????????## """"" ####" "#"T"###"T"##"T | | ???????????????##################"R"#######"""##"" | | ???????????????##################"""############## | | ???????????????????????????????#######???######### | | ???????????????????????????????#######???????????? | | ?????????????????????????????????????????????????? | | ?????????????????????????????????????????????????? | | ?????????????????????????????????????????????????? | | ?????????????????????????????????????????????????? | | ?????????????????????????????????????????????????? | | ?????????????????????????????????????????????????? | | ?????????????????????????????????????????????????? | | ????????????????????????????????????????????###### | | ????????????????????????????????????????????# | +----------------------------------------------------+ Best States ------------- Heat Dissipation 31 Energy Generation 14 Energy Capacity 265 Matter Stores 300 Matter Capacity 300 Sight Range 16 Terrain Scan Density 10 Armor Coverage 150 Evasion (%) 50 Recoil Reduction 3 Offensive Hacking 10 Authchip Count 2 Item Schematics ----------------- None Robot Schematics ------------------ None Fabricated ------------ Nothing Alien Tech Used ----------------- None Achievements -------------- None Challenges ------------ None Game ------ Seed CommTeleporterVibroblade Manual? 0 Play Time 00:29:51 Cumulative 43.1 hours Start 2025.01.18 @ 13:01:03 End 2025.01.18 @ 13:39:50 Sessions 1 Manual Loads 0 Difficulty Rogue Special Mode None Game No. 51 Rogue 48 Adventurer 0 Explorer 3 Win Type - Total 0 Types 0/0/0/0/0/0/0/0/0 Lore% 9 Gallery% 31 Achievement% 28 Wizard Run 0 Options --------- Layout 0 ASCII 0 Keyboard 0 Movement Numpad Keybinds 0 Fullscreen 0 Font 16/SmallcapsGlow Map View 88x55 Zoom Use 0% Tactical HUD 1 Map Filters NONE Filters NONE Steam 1 RUN: 3d77d4f0-decb-40ef-b428-1ea76b30a23b